[Event "Late-Titled-Tuesday-Blitz-June-04-2024"]
[Site "Chess.com"]
[Date "2024.06.04"]
[Round "3"]
[White "scrambleyourbrain"]
[Black "ChessLebaneseSalah"]
[Result "0-1"]
[WhiteElo "2386"]
[BlackElo "2577"]
[TimeControl "180+1"]
[EndTime "14:24:32 PDT"]
[Termination "ChessLebaneseSalah won by resignation"]

1. e4 {[%clk 0:03:00.9]} 1... c5 {[%clk 0:02:59.8]} 2. Nf3 {[%clk 0:03:01.5]}
2... d6 {[%clk 0:02:59.9]} 3. d4 {[%clk 0:03:02.1]} 3... cxd4 {[%clk 0:03:00.8]}
4. Nxd4 {[%clk 0:03:02.5]} 4... Nf6 {[%clk 0:03:01.4]} 5. Nc3 {[%clk 0:03:03.1]}
5... Nc6 {[%clk 0:03:01.2]} 6. f3 {[%clk 0:03:01.6]} 6... e5 {[%clk 0:02:59.2]}
7. Nb3 {[%clk 0:03:01.8]} 7... Be6 {[%clk 0:02:59.6]} 8. Be3 {[%clk 0:03:01]}
8... d5 {[%clk 0:02:59.9]} 9. exd5 {[%clk 0:03:01.5]} 9... Nxd5 {[%clk
0:03:00.8]} 10. Nxd5 {[%clk 0:03:01.6]} 10... Qxd5 {[%clk 0:03:01.7]} 11. Qxd5
{[%clk 0:03:01.6]} 11... Bxd5 {[%clk 0:03:02.6]} 12. O-O-O {[%clk 0:03:01.9]}
12... Be6 {[%clk 0:03:02.4]} 13. Bb5 {[%clk 0:03:02.1]} 13... Be7 {[%clk
0:02:56.7]} 14. Na5 {[%clk 0:03:00.1]} 14... O-O {[%clk 0:02:47.2]} 15. Bxc6
{[%clk 0:02:40.1]} 15... bxc6 {[%clk 0:02:44.4]} 16. Nxc6 {[%clk 0:02:40.6]}
16... Rfe8 {[%clk 0:02:42.4]} 17. Nxe7+ {[%clk 0:02:33.8]} 17... Rxe7 {[%clk
0:02:43.3]} 18. b3 {[%clk 0:02:33.9]} 18... Rc7 {[%clk 0:02:41.3]} 19. Rd2
{[%clk 0:02:31.4]} 19... f6 {[%clk 0:02:36.4]} 20. Kb2 {[%clk 0:02:31.1]} 20...
a5 {[%clk 0:02:35.6]} 21. c4 {[%clk 0:02:31.1]} 21... a4 {[%clk 0:02:35.6]} 22.
Rhd1 {[%clk 0:02:27.4]} 22... Kf7 {[%clk 0:02:35.2]} 23. Rd6 {[%clk 0:02:25]}
23... axb3 {[%clk 0:02:25.1]} 24. axb3 {[%clk 0:02:24.9]} 24... Rb8 {[%clk
0:02:21.8]} 25. Kc3 {[%clk 0:02:20.1]} 25... Rcb7 {[%clk 0:02:15.8]} 26. Rb1
{[%clk 0:02:10.2]} 26... Rc8 {[%clk 0:02:13.2]} 27. c5 {[%clk 0:02:02.3]} 27...
Ke7 {[%clk 0:02:02.7]} 28. b4 {[%clk 0:01:53.6]} 28... Ra8 {[%clk 0:02:01.6]}
29. Bc1 {[%clk 0:01:42.3]} 29... Rc8 {[%clk 0:01:57.3]} 30. Ba3 {[%clk
0:01:36.2]} 30... Rxc5+ {[%clk 0:01:52.3]} 31. bxc5 {[%clk 0:01:34.5]} 31...
Rxb1 {[%clk 0:01:52.9]} 32. c6 {[%clk 0:01:33.3]} 32... Rb3+ {[%clk 0:01:46.7]}
33. Kc2 {[%clk 0:01:32.9]} 33... Rxa3 {[%clk 0:01:47]} 0-1

[Event "Late-Titled-Tuesday-Blitz-June-04-2024"]
[Site "Chess.com"]
[Date "2024.06.04"]
[Round "3"]
[White "Bilan_Danila"]
[Black "norwaytoadog"]
[Result "1-0"]
[WhiteElo "2555"]
[BlackElo "2330"]
[TimeControl "180+1"]
[EndTime "14:24:48 PDT"]
[Termination "Bilan_Danila won by resignation"]

1. d4 {[%clk 0:03:00.9]} 1... d5 {[%clk 0:02:59.6]} 2. Nf3 {[%clk 0:03:01]} 2...
Nf6 {[%clk 0:02:59.6]} 3. c4 {[%clk 0:03:01.2]} 3... e6 {[%clk 0:02:59.7]} 4.
Nc3 {[%clk 0:03:01.3]} 4... a6 {[%clk 0:02:59.6]} 5. cxd5 {[%clk 0:03:01.1]}
5... exd5 {[%clk 0:02:59.7]} 6. Bg5 {[%clk 0:03:01.6]} 6... Be6 {[%clk
0:02:59.6]} 7. e3 {[%clk 0:03:01.8]} 7... Nbd7 {[%clk 0:02:57.6]} 8. Bd3 {[%clk
0:03:02.3]} 8... Bd6 {[%clk 0:02:56.6]} 9. Qc2 {[%clk 0:03:02.5]} 9... h6 {[%clk
0:02:55.8]} 10. Bh4 {[%clk 0:03:02.6]} 10... c6 {[%clk 0:02:55]} 11. O-O {[%clk
0:02:59.2]} 11... O-O {[%clk 0:02:50.7]} 12. Na4 {[%clk 0:02:59.2]} 12... Qc7
{[%clk 0:02:44.2]} 13. Nc5 {[%clk 0:02:54.9]} 13... Bg4 {[%clk 0:02:42.4]} 14.
Bg3 {[%clk 0:02:54.4]} 14... Bxg3 {[%clk 0:02:29]} 15. hxg3 {[%clk 0:02:55.3]}
15... Rfe8 {[%clk 0:02:26.4]} 16. b4 {[%clk 0:02:53.5]} 16... Nf8 {[%clk
0:02:17.3]} 17. Ne5 {[%clk 0:02:51.1]} 17... Bc8 {[%clk 0:01:37.9]} 18. a4
{[%clk 0:02:49]} 18... N8d7 {[%clk 0:01:26.9]} 19. Nexd7 {[%clk 0:02:30.1]}
19... Bxd7 {[%clk 0:01:26.9]} 20. b5 {[%clk 0:02:21.2]} 20... axb5 {[%clk
0:01:23.7]} 21. axb5 {[%clk 0:02:22.1]} 21... Rxa1 {[%clk 0:01:23.9]} 22. Rxa1
{[%clk 0:02:21.9]} 22... cxb5 {[%clk 0:01:23]} 23. Nxd7 {[%clk 0:02:18.3]} 23...
Qxd7 {[%clk 0:01:20.1]} 24. Qb3 {[%clk 0:02:14]} 24... Rc8 {[%clk 0:01:11.6]}
25. Qxb5 {[%clk 0:02:09.3]} 25... Qxb5 {[%clk 0:01:04.7]} 26. Bxb5 {[%clk
0:02:10.2]} 26... Rc2 {[%clk 0:01:03.4]} 27. Ra8+ {[%clk 0:02:09.7]} 27... Kh7
{[%clk 0:00:57.5]} 28. Bd3+ {[%clk 0:02:09.6]} 1-0

[Event "Late-Titled-Tuesday-Blitz-June-04-2024"]
[Site "Chess.com"]
[Date "2024.06.04"]
[Round "3"]
[White "isla88"]
[Black "JaackCamel"]
[Result "1-0"]
[WhiteElo "2453"]
[BlackElo "2219"]
[TimeControl "180+1"]
[EndTime "14:25:02 PDT"]
[Termination "isla88 won on time"]

1. Nf3 {[%clk 0:03:00.9]} 1... d5 {[%clk 0:02:51.5]} 2. b3 {[%clk 0:03:00.3]}
2... Nf6 {[%clk 0:02:44]} 3. Bb2 {[%clk 0:03:00.6]} 3... g6 {[%clk 0:02:42.6]}
4. e3 {[%clk 0:02:57.8]} 4... Bg7 {[%clk 0:02:42]} 5. d4 {[%clk 0:02:58.7]} 5...
O-O {[%clk 0:02:39.2]} 6. c4 {[%clk 0:02:59.2]} 6... c6 {[%clk 0:02:35.8]} 7.
Nc3 {[%clk 0:02:58.9]} 7... Bg4 {[%clk 0:02:32]} 8. Be2 {[%clk 0:02:58.4]} 8...
e6 {[%clk 0:02:27.3]} 9. Qc2 {[%clk 0:02:57.5]} 9... a6 {[%clk 0:02:22.3]} 10.
a4 {[%clk 0:02:56.3]} 10... Nbd7 {[%clk 0:02:21.7]} 11. a5 {[%clk 0:02:55.8]}
11... Rc8 {[%clk 0:02:16.3]} 12. Ba3 {[%clk 0:02:54.1]} 12... Re8 {[%clk
0:02:15.7]} 13. O-O {[%clk 0:02:50.4]} 13... Bxf3 {[%clk 0:02:10.6]} 14. Bxf3
{[%clk 0:02:50.2]} 14... e5 {[%clk 0:02:10.5]} 15. dxe5 {[%clk 0:02:44.6]} 15...
Nxe5 {[%clk 0:02:10.1]} 16. Be2 {[%clk 0:02:45.3]} 16... dxc4 {[%clk 0:02:06]}
17. bxc4 {[%clk 0:02:46.2]} 17... Qxa5 {[%clk 0:01:36.9]} 18. Bd6 {[%clk
0:02:44.8]} 18... Qb6 {[%clk 0:01:19.4]} 19. Rab1 {[%clk 0:02:44.1]} 19... Qa7
{[%clk 0:01:16.1]} 20. c5 {[%clk 0:02:44.4]} 20... Nfd7 {[%clk 0:00:42]} 21. Na4
{[%clk 0:02:43.9]} 21... Re6 {[%clk 0:00:29.1]} 22. f4 {[%clk 0:02:37.5]} 22...
Rxd6 {[%clk 0:00:15.6]} 23. cxd6 {[%clk 0:02:38.4]} 23... Qxe3+ {[%clk
0:00:14.6]} 24. Kh1 {[%clk 0:02:39.1]} 1-0

[Event "Late-Titled-Tuesday-Blitz-June-04-2024"]
[Site "Chess.com"]
[Date "2024.06.04"]
[Round "3"]
[White "Oleksandr_Bortnyk"]
[Black "lamomiajunior"]
[Result "1-0"]
[WhiteElo "3035"]
[BlackElo "2732"]
[TimeControl "180+1"]
[EndTime "14:25:10 PDT"]
[Termination "Oleksandr_Bortnyk won by resignation"]

1. e4 {[%clk 0:03:00.9]} 1... e5 {[%clk 0:02:55.7]} 2. Nf3 {[%clk 0:03:00.7]}
2... Nc6 {[%clk 0:02:56.2]} 3. Bb5 {[%clk 0:03:00.8]} 3... a6 {[%clk 0:02:56]}
4. Ba4 {[%clk 0:03:01]} 4... Nf6 {[%clk 0:02:56.6]} 5. Nc3 {[%clk 0:03:01.2]}
5... d6 {[%clk 0:02:50.4]} 6. d4 {[%clk 0:02:58.3]} 6... exd4 {[%clk 0:02:35.4]}
7. Bxc6+ {[%clk 0:02:57.8]} 7... bxc6 {[%clk 0:02:35.4]} 8. Nxd4 {[%clk
0:02:58.7]} 8... Bd7 {[%clk 0:02:35.1]} 9. Bg5 {[%clk 0:02:56.2]} 9... Be7
{[%clk 0:02:35.5]} 10. O-O {[%clk 0:02:55.6]} 10... O-O {[%clk 0:02:35.3]} 11.
Re1 {[%clk 0:02:56.2]} 11... Re8 {[%clk 0:02:32.3]} 12. h3 {[%clk 0:02:55.4]}
12... c5 {[%clk 0:02:32.7]} 13. Nf3 {[%clk 0:02:55.7]} 13... Be6 {[%clk
0:02:32.7]} 14. e5 {[%clk 0:02:55.3]} 14... Nd7 {[%clk 0:02:11.8]} 15. Bxe7
{[%clk 0:02:52.4]} 15... Qxe7 {[%clk 0:02:12.2]} 16. exd6 {[%clk 0:02:52.5]}
16... cxd6 {[%clk 0:02:13.1]} 17. Qd2 {[%clk 0:02:50.7]} 17... Nf6 {[%clk
0:02:10.8]} 18. Rad1 {[%clk 0:02:48.9]} 18... Rad8 {[%clk 0:02:10.8]} 19. Ng5
{[%clk 0:02:47.2]} 19... h6 {[%clk 0:02:07.2]} 20. Nxe6 {[%clk 0:02:46.5]} 20...
fxe6 {[%clk 0:02:08.1]} 21. Qe2 {[%clk 0:02:45.3]} 21... Qb7 {[%clk 0:02:07.6]}
22. b3 {[%clk 0:02:45.6]} 22... Kh8 {[%clk 0:01:55]} 23. Rd3 {[%clk 0:02:37.3]}
23... d5 {[%clk 0:01:54]} 24. Na4 {[%clk 0:02:37.1]} 24... Qc6 {[%clk
0:01:44.8]} 25. Qe5 {[%clk 0:02:27.4]} 25... Nd7 {[%clk 0:01:43.6]} 26. Qc3
{[%clk 0:02:25.2]} 26... e5 {[%clk 0:01:40.2]} 27. Rg3 {[%clk 0:02:24.2]} 27...
Re7 {[%clk 0:01:36.3]} 28. Rd1 {[%clk 0:02:21.7]} 28... Rde8 {[%clk 0:01:34.1]}
29. Qd3 {[%clk 0:02:21.6]} 29... d4 {[%clk 0:01:29.6]} 30. Qc4 {[%clk
0:02:19.5]} 30... e4 {[%clk 0:01:27.3]} 31. Rxd4 {[%clk 0:02:19.3]} 31... Ne5
{[%clk 0:01:27]} 32. Qxc5 {[%clk 0:02:19.7]} 32... Qf6 {[%clk 0:01:21.4]} 33.
Rxe4 {[%clk 0:02:16.4]} 33... Rd7 {[%clk 0:01:19.3]} 34. Kh2 {[%clk 0:02:10.1]}
34... Qf5 {[%clk 0:01:05.5]} 35. Rge3 {[%clk 0:02:05.3]} 35... Rde7 {[%clk
0:01:03.5]} 36. f4 {[%clk 0:02:00.1]} 1-0

[Event "Late-Titled-Tuesday-Blitz-June-04-2024"]
[Site "Chess.com"]
[Date "2024.06.04"]
[Round "3"]
[White "almaguerjm"]
[Black "KNVB"]
[Result "0-1"]
[WhiteElo "2494"]
[BlackElo "2770"]
[TimeControl "180+1"]
[EndTime "14:25:11 PDT"]
[Termination "KNVB won by resignation"]

1. e4 {[%clk 0:02:56.2]} 1... e5 {[%clk 0:03:00.9]} 2. Nf3 {[%clk 0:02:52.3]}
2... Nc6 {[%clk 0:03:01.8]} 3. Bc4 {[%clk 0:02:36.1]} 3... Nge7 {[%clk 0:03:02]}
4. O-O {[%clk 0:02:34.9]} 4... Ng6 {[%clk 0:03:01.8]} 5. c3 {[%clk 0:02:31.5]}
5... h6 {[%clk 0:03:01.6]} 6. d4 {[%clk 0:02:31.3]} 6... Qf6 {[%clk 0:03:02.3]}
7. Na3 {[%clk 0:02:25]} 7... Bxa3 {[%clk 0:03:02.2]} 8. bxa3 {[%clk 0:02:24.4]}
8... O-O {[%clk 0:03:02.6]} 9. d5 {[%clk 0:02:22.7]} 9... Nb8 {[%clk 0:03:01]}
10. d6 {[%clk 0:02:17.3]} 10... cxd6 {[%clk 0:02:55]} 11. Bd5 {[%clk 0:02:13.2]}
11... Nc6 {[%clk 0:02:53.5]} 12. g3 {[%clk 0:02:07.4]} 12... Nge7 {[%clk
0:02:52.6]} 13. c4 {[%clk 0:01:59.2]} 13... b6 {[%clk 0:02:52.1]} 14. Kg2 {[%clk
0:01:57.3]} 14... Ba6 {[%clk 0:02:52.1]} 15. Re1 {[%clk 0:01:56.3]} 15... Rac8
{[%clk 0:02:52.3]} 16. h4 {[%clk 0:01:36.5]} 16... Na5 {[%clk 0:02:50.3]} 17. g4
{[%clk 0:01:18.1]} 17... Bxc4 {[%clk 0:02:50.4]} 18. g5 {[%clk 0:01:18.2]} 18...
Qg6 {[%clk 0:02:51.1]} 19. Rh1 {[%clk 0:01:04.5]} 19... Nxd5 {[%clk 0:02:33.9]}
20. exd5 {[%clk 0:00:55.2]} 20... h5 {[%clk 0:02:34.3]} 21. Bd2 {[%clk
0:00:48.6]} 21... Qe4 {[%clk 0:02:29.5]} 22. Bxa5 {[%clk 0:00:47.5]} 22... bxa5
{[%clk 0:02:30.4]} 23. Rh3 {[%clk 0:00:37.9]} 23... Bxd5 {[%clk 0:02:17.3]} 24.
Kg1 {[%clk 0:00:18.9]} 24... Rc3 {[%clk 0:02:11.2]} 25. Qe1 {[%clk 0:00:14.4]}
25... Rxf3 {[%clk 0:02:09.9]} 0-1

[Event "Late-Titled-Tuesday-Blitz-June-04-2024"]
[Site "Chess.com"]
[Date "2024.06.04"]
[Round "3"]
[White "Emp3rador"]
[Black "Pig-filth"]
[Result "1-0"]
[WhiteElo "2628"]
[BlackElo "2307"]
[TimeControl "180+1"]
[EndTime "14:25:14 PDT"]
[Termination "Emp3rador won by resignation"]

1. e4 {[%clk 0:03:00.9]} 1... g6 {[%clk 0:02:58.6]} 2. d4 {[%clk 0:03:00.9]}
2... c6 {[%clk 0:02:58.3]} 3. Nc3 {[%clk 0:03:01.5]} 3... d6 {[%clk 0:02:57.9]}
4. h3 {[%clk 0:03:01.2]} 4... d5 {[%clk 0:02:54.2]} 5. e5 {[%clk 0:02:49.3]}
5... h5 {[%clk 0:02:53.9]} 6. Nge2 {[%clk 0:02:41.7]} 6... Nh6 {[%clk
0:02:50.9]} 7. Bg5 {[%clk 0:02:37.5]} 7... Nf5 {[%clk 0:02:43.4]} 8. Qd2 {[%clk
0:02:33.8]} 8... Nd7 {[%clk 0:02:36.5]} 9. O-O-O {[%clk 0:02:32.1]} 9... Nb6
{[%clk 0:02:36.5]} 10. Ng3 {[%clk 0:02:16.9]} 10... Nc4 {[%clk 0:02:17.1]} 11.
Bxc4 {[%clk 0:02:15]} 11... dxc4 {[%clk 0:02:18]} 12. d5 {[%clk 0:01:58.1]}
12... cxd5 {[%clk 0:02:01.4]} 13. Nxd5 {[%clk 0:01:57.7]} 13... Be6 {[%clk
0:01:55.3]} 14. Nxf5 {[%clk 0:01:55.6]} 14... Bxf5 {[%clk 0:01:44.9]} 15. Nf6+
{[%clk 0:01:49.6]} 15... exf6 {[%clk 0:01:42.1]} 16. Qxd8+ {[%clk 0:01:49.3]}
16... Rxd8 {[%clk 0:01:40.9]} 17. Rxd8+ {[%clk 0:01:50.2]} 17... Kxd8 {[%clk
0:01:41.6]} 18. Bxf6+ {[%clk 0:01:50.8]} 18... Kc7 {[%clk 0:01:37.4]} 19. Bxh8
{[%clk 0:01:50.6]} 19... Bc5 {[%clk 0:01:38.3]} 20. f3 {[%clk 0:01:49.3]} 20...
h4 {[%clk 0:01:19.8]} 21. Rf1 {[%clk 0:01:44.5]} 21... Kd7 {[%clk 0:01:10.4]}
22. Kd2 {[%clk 0:01:37.6]} 22... Ke6 {[%clk 0:01:09.7]} 23. Bf6 {[%clk 0:01:35]}
23... b5 {[%clk 0:01:02.2]} 24. Bxh4 {[%clk 0:01:31.8]} 24... a5 {[%clk
0:01:02.2]} 25. g4 {[%clk 0:01:30.9]} 1-0

[Event "Late-Titled-Tuesday-Blitz-June-04-2024"]
[Site "Chess.com"]
[Date "2024.06.04"]
[Round "3"]
[White "jaskol95"]
[Black "Kacparov"]
[Result "0-1"]
[WhiteElo "2571"]
[BlackElo "2909"]
[TimeControl "180+1"]
[EndTime "14:25:17 PDT"]
[Termination "Kacparov won by resignation"]

1. d4 {[%clk 0:03:00.9]} 1... Nf6 {[%clk 0:03:00]} 2. Nc3 {[%clk 0:03:00.3]}
2... d5 {[%clk 0:02:59.7]} 3. Bf4 {[%clk 0:03:00.2]} 3... c6 {[%clk 0:03:00.2]}
4. e3 {[%clk 0:03:00.3]} 4... g6 {[%clk 0:02:58.1]} 5. Nf3 {[%clk 0:02:53.2]}
5... Bg7 {[%clk 0:02:58.1]} 6. h4 {[%clk 0:02:53.9]} 6... Bg4 {[%clk 0:02:57.1]}
7. Be2 {[%clk 0:02:51]} 7... Bxf3 {[%clk 0:02:55.7]} 8. Bxf3 {[%clk 0:02:50.7]}
8... h5 {[%clk 0:02:55.1]} 9. Qe2 {[%clk 0:02:47.8]} 9... Nbd7 {[%clk 0:02:55]}
10. O-O-O {[%clk 0:02:47.5]} 10... Qa5 {[%clk 0:02:53]} 11. Kb1 {[%clk
0:02:47.3]} 11... b5 {[%clk 0:02:49.8]} 12. Qd2 {[%clk 0:02:41.7]} 12... b4
{[%clk 0:02:47.9]} 13. Ne2 {[%clk 0:02:41.6]} 13... Qb6 {[%clk 0:02:39.8]} 14.
Nc1 {[%clk 0:02:40]} 14... a5 {[%clk 0:02:27.5]} 15. Rhe1 {[%clk 0:02:34.6]}
15... O-O {[%clk 0:02:26.5]} 16. Rg1 {[%clk 0:02:30.5]} 16... Rfe8 {[%clk
0:02:23]} 17. g4 {[%clk 0:02:26.6]} 17... hxg4 {[%clk 0:02:22.2]} 18. Bxg4
{[%clk 0:02:26.6]} 18... e5 {[%clk 0:02:19.9]} 19. Bxd7 {[%clk 0:02:17.2]} 19...
Nxd7 {[%clk 0:02:19.7]} 20. Bh2 {[%clk 0:02:12.8]} 20... exd4 {[%clk 0:02:18.2]}
21. exd4 {[%clk 0:02:12.7]} 21... Re4 {[%clk 0:02:17.5]} 22. h5 {[%clk 0:01:42]}
22... Qxd4 {[%clk 0:02:15.7]} 23. Qxd4 {[%clk 0:01:40.3]} 23... Rxd4 {[%clk
0:02:13.4]} 24. hxg6 {[%clk 0:01:35.5]} 24... Rxd1 {[%clk 0:02:10.2]} 25. gxf7+
{[%clk 0:01:35.4]} 25... Kxf7 {[%clk 0:02:10.2]} 26. Rxd1 {[%clk 0:01:36.1]}
26... Nc5 {[%clk 0:02:07.4]} 27. Nd3 {[%clk 0:01:25.1]} 27... Nxd3 {[%clk
0:02:04.6]} 28. Rxd3 {[%clk 0:01:22]} 28... Rh8 {[%clk 0:02:01.2]} 29. Bg1
{[%clk 0:01:04.7]} 29... Rh1 {[%clk 0:01:59.2]} 30. Rf3+ {[%clk 0:01:02.8]}
30... Bf6 {[%clk 0:01:52.1]} 31. Rg3 {[%clk 0:01:01.9]} 31... Be5 {[%clk
0:01:48.9]} 32. Rg2 {[%clk 0:00:56.1]} 32... Bh2 {[%clk 0:01:47.1]} 0-1

[Event "Late-Titled-Tuesday-Blitz-June-04-2024"]
[Site "Chess.com"]
[Date "2024.06.04"]
[Round "3"]
[White "YellowJacek"]
[Black "oskariot"]
[Result "0-1"]
[WhiteElo "2393"]
[BlackElo "2692"]
[TimeControl "180+1"]
[EndTime "14:25:20 PDT"]
[Termination "oskariot won by resignation"]

1. e4 {[%clk 0:03:00.9]} 1... c5 {[%clk 0:02:59.3]} 2. Nf3 {[%clk 0:03:00.6]}
2... e6 {[%clk 0:02:58.3]} 3. d4 {[%clk 0:03:00.5]} 3... cxd4 {[%clk 0:02:59.2]}
4. Nxd4 {[%clk 0:03:00.7]} 4... Nf6 {[%clk 0:02:59.7]} 5. Nc3 {[%clk 0:03:00.6]}
5... d6 {[%clk 0:03:00]} 6. g4 {[%clk 0:02:57.2]} 6... e5 {[%clk 0:03:00.1]} 7.
Nf5 {[%clk 0:02:55.6]} 7... h5 {[%clk 0:02:58.4]} 8. gxh5 {[%clk 0:02:46.8]}
8... Nxh5 {[%clk 0:02:54.5]} 9. Ne3 {[%clk 0:02:13.9]} 9... Nc6 {[%clk
0:02:46.9]} 10. Ncd5 {[%clk 0:02:11]} 10... Be6 {[%clk 0:02:32.1]} 11. Bc4
{[%clk 0:02:09]} 11... Nf4 {[%clk 0:02:26.1]} 12. Nxf4 {[%clk 0:02:04.8]} 12...
exf4 {[%clk 0:02:26.2]} 13. Nd5 {[%clk 0:02:01.1]} 13... g5 {[%clk 0:02:19.3]}
14. c3 {[%clk 0:01:51.7]} 14... Bg7 {[%clk 0:02:14.9]} 15. h4 {[%clk 0:01:44]}
15... Ne5 {[%clk 0:02:03.4]} 16. Bb5+ {[%clk 0:01:37.2]} 16... Kf8 {[%clk
0:02:03.3]} 17. b3 {[%clk 0:00:57.6]} 17... Qa5 {[%clk 0:01:41.1]} 18. a4 {[%clk
0:00:28.8]} 18... Bxd5 {[%clk 0:01:40.6]} 19. exd5 {[%clk 0:00:27.3]} 19...
Qxc3+ {[%clk 0:01:39.2]} 20. Bd2 {[%clk 0:00:27.7]} 20... Nf3+ {[%clk
0:01:39.5]} 0-1

[Event "Late-Titled-Tuesday-Blitz-June-04-2024"]
[Site "Chess.com"]
[Date "2024.06.04"]
[Round "3"]
[White "charly871"]
[Black "arnoldpetra"]
[Result "1/2-1/2"]
[WhiteElo "2271"]
[BlackElo "2493"]
[TimeControl "180+1"]
[EndTime "14:25:21 PDT"]
[Termination "Game drawn by repetition"]

1. c4 {[%clk 0:03:00.9]} 1... d6 {[%clk 0:03:00.9]} 2. g3 {[%clk 0:03:00.5]}
2... c6 {[%clk 0:03:01.8]} 3. Bg2 {[%clk 0:02:59.6]} 3... g6 {[%clk 0:03:02.7]}
4. Nc3 {[%clk 0:02:59.1]} 4... Bg7 {[%clk 0:03:03.3]} 5. b3 {[%clk 0:02:59.4]}
5... Nf6 {[%clk 0:03:03.4]} 6. Bb2 {[%clk 0:02:59.6]} 6... O-O {[%clk
0:03:04.3]} 7. Nf3 {[%clk 0:02:59.4]} 7... Bg4 {[%clk 0:03:04.1]} 8. h3 {[%clk
0:02:58.2]} 8... Bxf3 {[%clk 0:03:04.3]} 9. Bxf3 {[%clk 0:02:57.8]} 9... d5
{[%clk 0:03:05.2]} 10. cxd5 {[%clk 0:02:57.5]} 10... cxd5 {[%clk 0:03:06.1]} 11.
O-O {[%clk 0:02:56.3]} 11... Nc6 {[%clk 0:03:06.7]} 12. d3 {[%clk 0:02:53.3]}
12... e5 {[%clk 0:03:06.7]} 13. Bg2 {[%clk 0:02:50.9]} 13... Re8 {[%clk
0:03:07]} 14. Rc1 {[%clk 0:02:50]} 14... Rc8 {[%clk 0:03:05.8]} 15. Na4 {[%clk
0:02:45.6]} 15... b6 {[%clk 0:02:57.8]} 16. Qd2 {[%clk 0:02:39.1]} 16... e4
{[%clk 0:02:53.9]} 17. dxe4 {[%clk 0:02:38]} 17... Nxe4 {[%clk 0:02:48.6]} 18.
Bxe4 {[%clk 0:02:14.2]} 18... dxe4 {[%clk 0:02:47.7]} 19. Qxd8 {[%clk
0:02:14.1]} 19... Rexd8 {[%clk 0:02:47.4]} 20. Bxg7 {[%clk 0:02:12.8]} 20...
Kxg7 {[%clk 0:02:48.3]} 21. Nc3 {[%clk 0:02:05.9]} 21... f5 {[%clk 0:02:38.9]}
22. e3 {[%clk 0:02:05.3]} 22... Ne5 {[%clk 0:02:38.5]} 23. Nb5 {[%clk
0:02:02.5]} 23... Nf3+ {[%clk 0:02:33.5]} 24. Kg2 {[%clk 0:02:01.6]} 24... a6
{[%clk 0:02:21.2]} 25. Nc7 {[%clk 0:01:55.1]} 25... Kf6 {[%clk 0:02:05.6]} 26.
Nxa6 {[%clk 0:01:54.2]} 26... Rxc1 {[%clk 0:02:03.7]} 27. Rxc1 {[%clk
0:01:53.1]} 27... Rd2 {[%clk 0:02:04.6]} 28. Nb4 {[%clk 0:01:46.3]} 28... h5
{[%clk 0:02:00.2]} 29. h4 {[%clk 0:01:42.7]} 29... Ke6 {[%clk 0:01:49]} 30. Rc6+
{[%clk 0:01:42.4]} 30... Kd7 {[%clk 0:01:47.5]} 31. Rxb6 {[%clk 0:01:40.9]}
31... Rd1 {[%clk 0:01:47.9]} 32. Rxg6 {[%clk 0:01:36.1]} 32... Rg1+ {[%clk
0:01:47.8]} 33. Kh3 {[%clk 0:01:36]} 33... Rh1+ {[%clk 0:01:45.9]} 34. Kg2
{[%clk 0:01:36.2]} 34... Rg1+ {[%clk 0:01:43.9]} 35. Kh3 {[%clk 0:01:36.4]}
35... Rf1 {[%clk 0:01:04.8]} 36. Kg2 {[%clk 0:01:34.3]} 36... Rg1+ {[%clk
0:01:04.4]} 1/2-1/2

[Event "Late-Titled-Tuesday-Blitz-June-04-2024"]
[Site "Chess.com"]
[Date "2024.06.04"]
[Round "3"]
[White "N_I_Chess"]
[Black "GlavkonVVS"]
[Result "0-1"]
[WhiteElo "2287"]
[BlackElo "2548"]
[TimeControl "180+1"]
[EndTime "14:25:27 PDT"]
[Termination "GlavkonVVS won by resignation"]

1. d4 {[%clk 0:02:53.6]} 1... Nf6 {[%clk 0:02:57.8]} 2. c4 {[%clk 0:02:53.7]}
2... c5 {[%clk 0:02:58]} 3. d5 {[%clk 0:02:53.6]} 3... e6 {[%clk 0:02:58.4]} 4.
Nc3 {[%clk 0:02:53]} 4... exd5 {[%clk 0:02:57.1]} 5. cxd5 {[%clk 0:02:53.9]}
5... d6 {[%clk 0:02:57.2]} 6. e4 {[%clk 0:02:54.4]} 6... g6 {[%clk 0:02:57.2]}
7. f4 {[%clk 0:02:55]} 7... Bg7 {[%clk 0:02:57.1]} 8. Nf3 {[%clk 0:02:55.2]}
8... O-O {[%clk 0:02:55.1]} 9. Be2 {[%clk 0:02:55.1]} 9... Re8 {[%clk
0:02:54.2]} 10. e5 {[%clk 0:02:54.6]} 10... dxe5 {[%clk 0:02:51.3]} 11. fxe5
{[%clk 0:02:55.5]} 11... Ng4 {[%clk 0:02:51.4]} 12. Bg5 {[%clk 0:02:56.1]} 12...
Qb6 {[%clk 0:02:49.1]} 13. O-O {[%clk 0:02:56.1]} 13... Qxb2 {[%clk 0:02:33.3]}
14. Na4 {[%clk 0:02:47.2]} 14... Qa3 {[%clk 0:02:27.3]} 15. Bc1 {[%clk
0:02:27.7]} 15... Qb4 {[%clk 0:02:17.2]} 16. Rb1 {[%clk 0:02:26.5]} 16... Qxb1
{[%clk 0:02:15.5]} 17. e6 {[%clk 0:01:47.2]} 17... fxe6 {[%clk 0:02:12.1]} 18.
a3 {[%clk 0:01:19.8]} 18... exd5 {[%clk 0:01:56.6]} 19. Bd3 {[%clk 0:01:19.6]}
19... Qa1 {[%clk 0:01:50.2]} 20. Bb5 {[%clk 0:01:05.7]} 20... Nc6 {[%clk
0:01:46.7]} 21. Qxd5+ {[%clk 0:01:03.8]} 21... Be6 {[%clk 0:01:46.6]} 22. Qxc5
{[%clk 0:00:57.5]} 22... Nge5 {[%clk 0:01:35.9]} 23. Be3 {[%clk 0:00:47.7]}
23... Nxf3+ {[%clk 0:01:27.7]} 24. gxf3 {[%clk 0:00:48]} 24... Qe5 {[%clk
0:01:25.5]} 0-1